bitfinex/quotes_BTCUSD_20251205
["timestamp","ask_amount","ask_price","bid_price","bid_amount"]
[1764911449924,0.06704,92153.0,92152.0,0.03865036]
[1764911453708,0.01566,92153.0,92152.0,0.03865036]
[1764911455049,0.01566,92153.0,92152.0,0.03965036]
[1764911455444,0.01629,92161.0,92157.0,0.21702076]
[1764911455648,0.01629,92161.0,92160.0,0.02153036]
[1764911456662,0.01085034,92163.0,92160.0,0.02153036]
[1764911456663,0.22785716,92163.0,92162.0,0.02153036]
[1764911457577,0.01085034,92163.0,92162.0,0.02153036]
[1764911457781,0.22785716,92163.0,92162.0,0.02153036]
[1764911460398,0.01085034,92163.0,92162.0,0.02153036]
[1764911460961,0.22785716,92163.0,92162.0,0.02153036]
[1764911461169,0.0108514,92154.0,92151.0,0.02708508]
[1764911461368,0.03774,92152.0,92151.0,0.03776369]
[1764911461579,0.03774,92152.0,92151.0,0.05488369]
[1764911461783,0.06766,92152.0,92151.0,0.05488369]
[1764911462037,0.06766,92152.0,92151.0,0.03335333]
[1764911462518,0.06766,92152.0,92151.0,0.03535333]
[1764911465580,0.06766,92152.0,92151.0,0.05688369]
[1764911465798,0.03774,92152.0,92151.0,0.27391877]
[1764911466180,0.01628,92152.0,92151.0,0.27391877]
[1764911467052,0.01628,92164.0,92163.0,0.02153036]
[1764911467258,0.01628,92164.0,92163.0,0.03865036]
[1764911467406,0.01084951,92170.0,92165.0,0.02153036]
[1764911467609,0.01479,92173.0,92170.0,0.21698809]
[1764911467812,0.01479,92173.0,92172.0,0.02153036]
[1764911471060,0.01479,92173.0,92172.0,0.02353036]
[1764911472024,0.01628,92176.0,92175.0,0.02153036]
[1764911472255,0.01628,92176.0,92175.0,0.03865036]
[1764911472641,0.00023122,92178.0,92177.0,0.02153036]
[1764911474339,0.05193122,92178.0,92177.0,0.02253036]
[1764911480920,0.02145122,92178.0,92177.0,0.02253036]
[1764911481129,0.00023122,92178.0,92177.0,0.02253036]
[1764911485126,0.02145122,92178.0,92177.0,0.02253036]
[1764911485320,0.05193122,92178.0,92177.0,0.02253036]
[1764911487352,0.26890273,92178.0,92177.0,0.02253036]
[1764911490388,0.26890273,92178.0,92177.0,0.001]
[1764911490556,0.26890273,92178.0,92177.0,0.02253036]
[1764911490930,0.05193122,92178.0,92177.0,0.02253036]
[1764911496983,0.26890273,92178.0,92177.0,0.02253036]
[1764911497843,0.26890273,92178.0,92177.0,0.03965036]
[1764911498988,0.26890273,92178.0,92177.0,0.03865036]
[1764911502018,0.26890273,92178.0,92177.0,0.01712]
[1764911520694,0.26890273,92178.0,92177.0,0.03865036]
[1764911521081,0.02145122,92178.0,92177.0,0.03865036]
[1764911521337,0.00023122,92178.0,92177.0,0.03865036]
[1764911522660,0.00023122,92178.0,92177.0,0.03965036]
[1764911523279,0.00023122,92178.0,92177.0,0.03865036]
[1764911524817,0.00023122,92178.0,92177.0,0.03965036]
[1764911532042,0.04750122,92178.0,92177.0,0.03965036]
[1764911532445,0.01909122,92178.0,92177.0,0.03965036]
[1764911534438,0.00023122,92178.0,92177.0,0.03965036]
[1764911538734,0.00023122,92178.0,92177.0,0.44687073]
[1764911538874,0.00023122,92178.0,92177.0,1.06738683]
[1764911539078,0.00023122,92178.0,92177.0,0.74161183]
[1764911539639,0.00023122,92178.0,92177.0,0.71415283]
[1764911539982,0.00023122,92178.0,92177.0,0.71515283]
[1764911540399,0.00023122,92178.0,92177.0,0.71315283]
[1764911540728,0.00023122,92178.0,92177.0,0.71915283]
[1764911540882,0.00023122,92178.0,92177.0,0.72015283]
[1764911543992,0.00023122,92178.0,92177.0,0.93712669]
[1764911548620,2.457e-05,92178.0,92177.0,0.93712669]
[1764911558697,0.0002,92180.0,92179.0,2.6240225]
[1764911558698,2.395e-05,92180.0,92179.0,2.6240225]
[1764911559393,2.395e-05,92180.0,92179.0,2.62836372]
[1764911560428,2.395e-05,92180.0,92179.0,2.63336372]
[1764911560634,2.395e-05,92180.0,92179.0,2.63436372]
[1764911561034,2.395e-05,92180.0,92179.0,1.66237872]
[1764911561240,2.395e-05,92180.0,92179.0,1.59312472]
[1764911561452,2.395e-05,92180.0,92179.0,1.59212472]
[1764911561686,2.395e-05,92180.0,92179.0,1.58912472]
[1764911562088,2.395e-05,92180.0,92179.0,1.59612472]
[1764911564050,0.0002,92190.0,92189.0,0.53994562]
[1764911564239,0.0002,92200.0,92199.0,2.62397544]
[1764911564583,0.0002,92200.0,92199.0,2.50339244]
[1764911564584,0.00083567,92200.0,92199.0,2.50339244]
[1764911564783,0.00083567,92200.0,92199.0,2.49139444]
[1764911565229,0.00083567,92200.0,92199.0,2.4957345]
[1764911565617,0.00083567,92200.0,92199.0,2.5017345]
[1764911566766,0.00083567,92200.0,92199.0,2.5849183]
[1764911567556,0.00083567,92200.0,92199.0,2.5027345]
[1764911568594,0.00063567,92200.0,92199.0,2.5027345]
[1764911568798,8.942e-05,92200.0,92199.0,2.5027345]
[1764911569008,8.942e-05,92200.0,92199.0,2.5198545]
[1764911572195,8.942e-05,92200.0,92199.0,2.60253461]
[1764911576170,8.942e-05,92200.0,92199.0,2.58541461]
[1764911576422,8.942e-05,92200.0,92199.0,2.60253461]
[1764911577160,8.942e-05,92200.0,92199.0,2.52013861]
[1764911578261,8.942e-05,92200.0,92199.0,1.98160361]
[1764911578690,9.62e-06,92200.0,92199.0,1.98160361]
[1764911583997,9.62e-06,92200.0,92199.0,1.8989235]
[1764911588766,0.01104363,92220.0,92209.0,0.62395191]
[1764911588977,0.01104363,92220.0,92209.0,0.65730524]
[1764911589374,0.01084375,92219.0,92209.0,0.66834887]
[1764911589730,0.01104363,92220.0,92209.0,0.02727696]
[1764911589731,0.04486,92210.0,92209.0,0.02727696]
[1764911589934,0.26175621,92210.0,92209.0,0.05588369]
[1764911590143,0.26175621,92210.0,92209.0,0.05988369]
[1764911590604,0.26175621,92210.0,92209.0,0.05888369]
[1764911591173,0.26175621,92210.0,92209.0,0.03776369]
[1764911591383,0.26175621,92210.0,92209.0,0.05588369]
[1764911592268,0.26175621,92210.0,92209.0,0.001]
[1764911593521,0.21693856,92192.0,92191.0,0.03865036]
[1764911593740,0.24879856,92192.0,92191.0,0.03865036]
[1764911593950,0.27492856,92192.0,92191.0,0.03865036]
[1764911594844,0.27492856,92192.0,92191.0,0.03965036]
[1764911596997,0.27492856,92192.0,92191.0,0.03865036]
[1764911597202,0.27492856,92192.0,92191.0,0.03965036]
[1764911601874,0.01333,92192.0,92191.0,0.03965036]
[1764911602030,0.03186,92192.0,92191.0,0.03965036]
[1764911602221,0.05799,92192.0,92191.0,0.03965036]
[1764911608165,0.03186,92192.0,92191.0,0.03965036]
[1764911608369,0.21693119,92196.0,92195.0,0.02153036]
[1764911608581,0.01084633,92197.0,92196.0,0.02153036]
[1764911609004,0.24630312,92197.0,92196.0,0.02153036]
[1764911609427,0.27243312,92197.0,92196.0,0.02153036]
[1764911610500,0.01084786,92184.0,92181.0,0.323]
[1764911610725,0.01084845,92179.0,92178.0,0.02153036]
[1764911610969,0.01084845,92179.0,92178.0,0.03865036]
[1764911610970,0.2463476,92179.0,92178.0,0.03865036]
[1764911611178,0.2724776,92179.0,92178.0,0.03865036]
[1764911613055,0.2724776,92179.0,92178.0,0.04065036]
[1764911613517,0.2724776,92179.0,92178.0,0.04165036]
[1764911621831,0.2724776,92179.0,92178.0,0.02453036]
[1764911622372,0.2724776,92179.0,92178.0,0.02353036]
[1764911622779,0.05550845,92179.0,92178.0,0.02453036]
[1764911623005,0.01333,92182.0,92181.0,0.02153036]
[1764911623883,0.0241781,92182.0,92181.0,0.02153036]
[1764911626171,0.0241781,92182.0,92181.0,0.02253036]
[1764911626986,0.0108481,92182.0,92181.0,0.02253036]
[1764911627366,0.22781019,92182.0,92181.0,0.02253036]
[1764911636937,0.27082019,92182.0,92181.0,0.02253036]
[1764911637437,0.27082019,92182.0,92181.0,0.001]
[1764911637605,0.27082019,92182.0,92181.0,0.01723333]
[1764911639270,0.27082019,92182.0,92181.0,0.01623333]
[1764911640495,0.21698092,92174.0,92173.0,0.01712]
[1764911640650,0.24683092,92174.0,92173.0,0.03865036]
[1764911641021,0.27263092,92174.0,92173.0,0.01712]
[1764911642348,0.01084975,92168.0,92167.0,0.02153036]
[1764911642865,0.2834948,92168.0,92167.0,0.02153036]
[1764911643645,0.2834948,92168.0,92167.0,0.02353036]
[1764911644045,0.2834948,92168.0,92167.0,0.02453036]
[1764911650224,0.02348975,92168.0,92167.0,0.02453036]
[1764911651633,0.04103975,92168.0,92167.0,0.02453036]
[1764911653581,0.02348975,92168.0,92167.0,0.02453036]
[1764911659384,0.01084916,92173.0,92172.0,0.02153036]
[1764911659796,0.05306916,92173.0,92172.0,0.02153036]
[1764911661456,0.05306916,92173.0,92172.0,0.03865036]
[1764911661658,0.02839916,92173.0,92172.0,0.03965036]
[1764911662011,0.05306916,92173.0,92172.0,0.03965036]
[1764911666974,0.05306916,92173.0,92172.0,0.001]
[1764911667176,0.05306916,92173.0,92172.0,0.02253036]
[1764911667574,0.05306916,92173.0,92172.0,0.001]
[1764911668935,0.2169974,92167.0,92166.0,0.02153036]
[1764911669298,0.2592174,92167.0,92166.0,0.02153036]
[1764911670245,0.2592174,92167.0,92165.0,0.01623333]
[1764911670455,0.04222,92166.0,92165.0,0.01623333]
[1764911670656,0.21703272,92152.0,92151.0,0.37788369]
[1764911670853,0.24738272,92152.0,92151.0,0.37788369]
[1764911671053,0.27205272,92152.0,92151.0,0.37788369]
[1764911671849,0.27205272,92152.0,92151.0,0.05488369]
[1764911672234,0.27205272,92152.0,92151.0,0.05788369]
[1764911672643,0.27205272,92152.0,92151.0,0.05488369]
[1764911672840,0.27205272,92152.0,92151.0,0.05688369]
[1764911677282,0.27205272,92152.0,92151.0,0.05488369]
[1764911677841,0.27205272,92152.0,92151.0,0.03535333]
[1764911678198,0.27205272,92152.0,92151.0,0.05688369]
[1764911688942,0.01186,92158.0,92153.0,0.01085151]
[1764911689175,0.01186,92158.0,92157.0,0.02153036]
[1764911691504,0.01186,92158.0,92157.0,0.02253036]
[1764911691912,0.01186,92158.0,92157.0,0.02453036]
[1764911692253,0.05347,92158.0,92157.0,0.02453036]
[1764911692859,0.27048859,92158.0,92157.0,0.02453036]
[1764911695004,0.27048859,92158.0,92157.0,0.02353036]
[1764911695171,0.27048859,92158.0,92157.0,0.02153036]
[1764911695870,0.21703272,92152.0,92151.0,0.05488369]
[1764911696046,0.23427272,92152.0,92151.0,0.03776369]
[1764911696259,0.23427272,92152.0,92151.0,0.05488369]
[1764911696260,0.25864272,92152.0,92151.0,0.05488369]
[1764911697443,0.25864272,92152.0,92151.0,0.05688369]
[1764911697805,0.25864272,92152.0,92151.0,0.05488369]
[1764911697984,0.25864272,92152.0,92151.0,0.05688369]
[1764911701164,0.25864272,92152.0,92151.0,0.01823333]
[1764911701384,0.25864272,92152.0,92151.0,0.03535333]
[1764911702890,0.25864272,92152.0,92151.0,0.05688369]
[1764911704020,0.25864272,92152.0,92151.0,0.02353036]
[1764911704638,0.25864272,92152.0,92151.0,0.002]
[1764911704841,0.25864272,92152.0,92151.0,0.02153036]
[1764911707801,0.21705157,92144.0,92143.0,0.01712]
[1764911708026,0.24596157,92144.0,92143.0,0.01712]
[1764911708484,0.27076157,92144.0,92143.0,0.01712]
[1764911709428,0.27076157,92144.0,92143.0,0.01912]
[1764911710298,0.27076157,92144.0,92143.0,0.04065036]
[1764911714963,0.24596157,92144.0,92143.0,0.04065036]
[1764911717646,0.05371,92144.0,92143.0,0.04065036]
[1764911718615,0.02891,92144.0,92143.0,0.04065036]
[1764911718825,0.05371,92144.0,92143.0,0.04065036]
[1764911719907,0.05371,92144.0,92143.0,0.01912]
[1764911720132,0.05371,92144.0,92143.0,0.04065036]
[1764911720811,0.27076157,92144.0,92143.0,0.04065036]
[1764911724994,0.27076157,92144.0,92143.0,0.01912]
[1764911725194,0.01278,92144.0,92143.0,0.01912]
[1764911725447,0.01278,92144.0,92143.0,0.04065036]
[1764911725646,0.22983157,92144.0,92143.0,0.04065036]
[1764911725883,0.24596157,92144.0,92143.0,0.04065036]
[1764911726361,0.27076157,92144.0,92143.0,0.04065036]
[1764911736748,0.01278,92150.0,92149.0,0.02153036]
[1764911737695,0.01278,92150.0,92149.0,0.23857015]
[1764911738043,0.01278,92150.0,92149.0,0.23957015]
[1764911738485,0.01278,92150.0,92149.0,0.02253036]
[1764911738930,0.01278,92150.0,92149.0,0.23957015]
[1764911740385,0.01278,92155.0,92154.0,0.02153036]
[1764911740621,0.02917,92155.0,92154.0,0.01712]
[1764911740831,0.01278,92155.0,92154.0,0.03865036]
[1764911741046,0.05291,92155.0,92154.0,0.03865036]
[1764911741900,0.05291,92155.0,92154.0,0.04065036]
[1764911745889,0.02917,92155.0,92154.0,0.04065036]
[1764911746419,0.05241,92155.0,92154.0,0.04065036]
[1764911747316,0.01278,92155.0,92154.0,0.04065036]
[1764911749702,0.01186,92158.0,92155.0,0.22787694]
[1764911750075,0.01156,92170.0,92164.0,0.02153036]
[1764911750267,0.01156,92180.0,92169.0,0.03237999]
[1764911750268,0.01084881,92176.0,92169.0,0.03237999]
[1764911750476,0.01084881,92176.0,92174.0,0.02153036]
[1764911750678,0.01084857,92178.0,92177.0,0.02153036]
[1764911751280,0.02741857,92178.0,92177.0,0.02153036]
[1764911751495,0.05065857,92178.0,92177.0,0.02153036]
[1764911752223,0.05065857,92178.0,92177.0,0.002]
[1764911752399,0.05065857,92178.0,92177.0,0.04065036]
[1764911753996,0.01084857,92178.0,92177.0,0.04165036]
[1764911754434,0.05065857,92178.0,92177.0,0.04165036]
[1764911755585,0.05065857,92178.0,92177.0,0.02453036]
[1764911755892,0.02741857,92178.0,92177.0,0.04165036]
[1764911758755,0.05065857,92178.0,92177.0,0.04165036]
[1764911759595,0.06221857,92178.0,92177.0,0.04165036]
[1764911759772,0.03897857,92178.0,92177.0,0.04165036]
[1764911760789,0.01084857,92178.0,92177.0,0.04165036]
[1764911761662,0.05065857,92178.0,92177.0,0.02012]
[1764911762091,0.05065857,92178.0,92177.0,0.04165036]
[1764911763608,0.02741857,92178.0,92177.0,0.04165036]
[1764911763766,0.01084857,92178.0,92177.0,0.04165036]
[1764911765299,0.01156,92185.0,92184.0,0.02153036]
[1764911765457,0.01156,92185.0,92184.0,0.03776369]
[1764911765851,0.22780032,92186.0,92185.0,0.02153036]
[1764911768898,0.26790032,92186.0,92185.0,0.02153036]
[1764911769112,0.26790032,92186.0,92184.0,0.01623333]
[1764911769293,0.0401,92185.0,92184.0,0.01623333]
[1764911771486,0.0401,92185.0,92184.0,0.03776369]
[1764911773972,0.01588,92185.0,92184.0,0.03776369]
[1764911774845,0.0401,92185.0,92184.0,0.03776369]
[1764911776415,0.01588,92185.0,92184.0,0.03776369]
[1764911777971,0.22780032,92186.0,92185.0,0.02153036]
[1764911779914,0.24116046,92193.0,92184.0,0.01623333]
[1764911779915,0.01084692,92192.0,92188.0,0.22779391]
[1764911780108,0.21694091,92191.0,92190.0,0.02153036]
[1764911782479,0.21694091,92191.0,92190.0,0.02253036]
[1764911784865,0.23282091,92191.0,92190.0,0.02253036]
[1764911785066,0.25704091,92191.0,92190.0,0.02253036]
[1764911786195,0.25704091,92191.0,92190.0,0.02153036]
[1764911790015,0.22778795,92191.0,92190.0,0.02153036]
[1764911792122,0.22778795,92191.0,92190.0,0.02253036]
[1764911795981,0.22778795,92191.0,92190.0,0.02153036]
[1764911796294,0.22778795,92191.0,92190.0,0.03965036]
[1764911797532,0.26910795,92191.0,92190.0,0.03965036]
[1764911798322,0.24422795,92191.0,92190.0,0.03965036]
[1764911798926,0.26910795,92191.0,92190.0,0.03965036]
[1764911800346,0.26910795,92191.0,92190.0,0.001]
[1764911802324,0.21695503,92185.0,92184.0,0.01623333]
[1764911802530,0.23339503,92185.0,92184.0,0.01623333]
[1764911802736,0.25827503,92185.0,92184.0,0.01623333]
[1764911803447,0.21697151,92178.0,92177.0,0.01712]
[1764911803657,0.2169974,92167.0,92166.0,0.04306072]
[1764911803868,0.2458874,92167.0,92166.0,0.04306072]
[1764911804082,0.21700447,92164.0,92163.0,0.01623333]
[1764911804310,0.24515447,92164.0,92163.0,0.01623333]
[1764911804529,0.26858447,92164.0,92163.0,0.01623333]
[1764911809210,0.21703272,92152.0,92151.0,0.01712]
[1764911809378,0.24518272,92152.0,92151.0,0.01712]
[1764911809588,0.26861272,92152.0,92151.0,0.03865036]
[1764911810449,0.26861272,92152.0,92151.0,0.04065036]
[1764911817990,0.26861272,92152.0,92151.0,0.03865036]
[1764911818395,0.26861272,92152.0,92151.0,0.04065036]
[1764911821266,0.26861272,92152.0,92151.0,0.02353036]
[1764911821477,0.26861272,92152.0,92151.0,0.002]
[1764911830670,0.24518272,92152.0,92151.0,0.02353036]
[1764911830886,0.22891272,92152.0,92151.0,0.02353036]
[1764911831034,0.22788109,92154.0,92153.0,0.02153036]
[1764911831237,0.22788109,92154.0,92153.0,0.03865036]
[1764911831461,0.22787941,92154.0,92153.0,0.03865036]
[1764911831818,0.2170112,92162.0,92156.0,0.03238152]
[1764911832062,0.01085045,92162.0,92161.0,0.02153036]
[1764911832237,0.01085034,92163.0,92159.0,0.22786687]
[1764911832458,0.01085034,92163.0,92162.0,0.03776369]
[1764911832830,0.21699688,92168.0,92165.0,0.02153036]
[1764911833025,0.21699688,92168.0,92165.0,0.03865036]
[1764911834983,0.21699688,92168.0,92165.0,0.04165036]
[1764911839406,0.22784663,92168.0,92165.0,0.04165036]
[1764911839609,0.22784663,92168.0,92167.0,0.02153036]
[1764911841137,0.22784663,92168.0,92167.0,0.02353036]
[1764911841348,0.24394663,92168.0,92167.0,0.002]
[1764911841486,0.26803663,92168.0,92167.0,0.002]
[1764911843154,0.26803663,92168.0,92166.0,0.01712]
[1764911843361,0.04019,92167.0,92166.0,0.01712]
[1764911843767,0.21699976,92166.0,92164.0,0.02153036]
[1764911843988,0.02748,92165.0,92164.0,0.02153036]
[1764911844191,0.05157,92165.0,92164.0,0.02153036]
[1764911845514,0.21700447,92164.0,92163.0,0.02153036]
[1764911845673,0.24109447,92164.0,92163.0,0.02153036]
[1764911845848,0.25719447,92164.0,92163.0,0.02153036]
[1764911847676,0.25719447,92164.0,92163.0,0.02353036]
[1764911858945,0.23310447,92164.0,92163.0,0.02353036]
[1764911859393,0.25736447,92164.0,92163.0,0.002]
[1764911860433,0.25736447,92164.0,92162.0,0.01623333]
[1764911860610,0.04046,92163.0,92162.0,0.01623333]
[1764911863332,0.21701388,92160.0,92157.0,0.01712]
[1764911863534,0.0275,92158.0,92157.0,0.01712]
[1764911863905,0.05176,92158.0,92157.0,0.01712]
[1764911864511,0.26877859,92158.0,92157.0,0.01712]
[1764911865778,0.26877859,92158.0,92157.0,0.01812]
[1764911870639,0.26877859,92158.0,92157.0,0.03965036]
[1764911871428,0.26877859,92158.0,92157.0,0.01812]
[1764911875612,0.26877859,92158.0,92157.0,0.001]
[1764911876151,0.21703272,92152.0,92151.0,0.01712]
[1764911876375,0.23238272,92152.0,92151.0,0.01712]
[1764911876580,0.25628272,92152.0,92151.0,0.01712]
[1764911878187,0.25628272,92152.0,92151.0,0.03865036]
[1764911878572,0.25628272,92152.0,92151.0,0.04065036]
[1764911879736,0.23238272,92152.0,92151.0,0.04065036]
[1764911879934,0.01182,92153.0,92152.0,0.02153036]
[1764911880160,0.22788118,92154.0,92153.0,0.02153036]
[1764911881916,0.01085116,92156.0,92152.0,0.01085163]
[1764911882048,0.01085104,92157.0,92152.0,0.01085163]
[1764911882049,0.01085104,92157.0,92156.0,0.02153036]
[1764911882678,0.01085081,92159.0,92158.0,0.02153036]
[1764911883118,0.2396754,92164.0,92162.0,0.02153036]
[1764911883245,0.02267022,92164.0,92162.0,0.03865036]
[1764911883446,0.01182,92164.0,92163.0,0.02153036]
[1764911883645,0.01182,92164.0,92163.0,0.03776369]
[1764911885395,0.01182,92164.0,92163.0,0.04076369]
[1764911885613,0.22785076,92166.0,92165.0,0.02153036]
[1764911885974,0.22785076,92166.0,92163.0,0.01923333]
[1764911885975,0.26710076,92166.0,92163.0,0.01923333]
[1764911886186,0.02717,92164.0,92163.0,0.04076369]
[1764911886586,0.05107,92164.0,92163.0,0.04076369]
[1764911886781,0.05107,92164.0,92163.0,0.01923333]
[1764911887612,0.05107,92164.0,92163.0,0.01623333]
[1764911889793,0.05107,92164.0,92163.0,0.03776369]
[1764911890437,0.02717,92164.0,92163.0,0.03776369]
[1764911890643,0.01182,92164.0,92163.0,0.03776369]
[1764911891678,0.01182,92164.0,92163.0,0.03976369]
[1764911892084,0.02763,92164.0,92163.0,0.03976369]
[1764911895771,0.05104,92164.0,92163.0,0.03976369]
[1764911896989,0.05104,92164.0,92163.0,0.01823333]
[1764911899010,0.05104,92164.0,92163.0,0.03976369]
[1764911900698,0.02763,92164.0,92163.0,0.03976369]
[1764911905492,0.01182,92164.0,92163.0,0.03976369]
[1764911906129,0.01084998,92166.0,92165.0,0.02153036]
[1764911906974,0.22784974,92166.0,92165.0,0.02153036]
[1764911907691,0.01084998,92166.0,92165.0,0.02153036]
[1764911907845,0.01084987,92167.0,92166.0,0.02153036]
[1764911908643,0.21699518,92168.0,92167.0,0.02153036]
[1764911909200,0.25621518,92168.0,92167.0,0.02153036]
[1764911911443,0.25621518,92168.0,92167.0,0.02253036]
[1764911911644,0.23280518,92168.0,92167.0,0.02253036]
[1764911913542,0.25621518,92168.0,92167.0,0.02253036]
[1764911921959,0.25621518,92168.0,92167.0,0.001]
[1764911930333,0.21700211,92165.0,92164.0,0.01623333]
[1764911930480,0.23282211,92165.0,92164.0,0.01623333]
[1764911930719,0.25561211,92165.0,92164.0,0.01623333]
[1764911931835,0.25561211,92165.0,92164.0,0.01723333]
[1764911937573,0.25561211,92165.0,92164.0,0.001]
[1764911942250,0.25561211,92165.0,92164.0,0.02253036]
[1764911946645,0.25561211,92165.0,92164.0,0.001]
[1764911952194,0.27714247,92165.0,92164.0,0.001]
[1764911953019,0.21701388,92160.0,92159.0,0.01712]
[1764911953220,0.23337388,92160.0,92159.0,0.01712]
[1764911953425,0.25785388,92160.0,92159.0,0.01712]
[1764911953626,0.21702566,92155.0,92151.0,0.02153036]
[1764911953826,0.02848,92152.0,92151.0,0.04306072]
[1764911954232,0.21703272,92152.0,92151.0,0.02153036]
[1764911954428,0.21703272,92152.0,92151.0,0.04306072]
[1764911955541,0.21703272,92152.0,92151.0,0.02153036]
[1764911956192,0.21703272,92152.0,92151.0,0.02353036]
[1764911956797,0.0108514,92154.0,92151.0,0.002]
[1764911956944,0.0108514,92154.0,92153.0,0.02153036]
[1764911957151,0.0272114,92154.0,92153.0,0.02153036]
[1764911957916,0.01636,92154.0,92153.0,0.02153036]
[1764911959244,0.01636,92154.0,92153.0,0.02253036]
[1764911960192,0.23338801,92154.0,92153.0,0.02253036]
[1764911960597,0.01636,92154.0,92153.0,0.02253036]
[1764911961252,0.04084,92154.0,92153.0,0.02253036]
[1764911963560,0.01085057,92161.0,92155.0,0.01085128]
[1764911963769,0.01085022,92164.0,92163.0,0.02153036]
[1764911964006,0.21702801,92154.0,92153.0,0.02253036]
[1764911964239,0.23338801,92154.0,92153.0,0.07222402]
[1764911964439,0.25786801,92154.0,92153.0,0.05510402]
[1764911965075,0.25786801,92154.0,92153.0,0.05410402]
[1764911965834,0.25786801,92154.0,92153.0,0.05610402]
[1764911968997,0.25786801,92154.0,92153.0,0.02353036]
[1764911969662,0.21702801,92154.0,92153.0,0.02353036]
[1764911969871,0.25786801,92154.0,92153.0,0.02353036]
[1764911970878,0.01636,92154.0,92153.0,0.002]
[1764911971115,0.02240998,92166.0,92159.0,0.02153036]
[1764911971325,0.02240998,92166.0,92157.0,0.01085104]
[1764911971326,0.02240998,92166.0,92162.0,0.02153036]
[1764911971527,0.01156,92166.0,92165.0,0.02153036]
[1764911974730,0.22856086,92166.0,92165.0,0.02153036]
[1764911976300,0.24492086,92166.0,92165.0,0.02153036]
[1764911976547,0.26940086,92166.0,92165.0,0.02153036]
[1764911980787,0.26940086,92166.0,92164.0,0.01623333]
[1764911980991,0.03931,92165.0,92164.0,0.01623333]
[1764911981446,0.03931,92165.0,92164.0,0.03776369]
[1764911982547,0.03931,92165.0,92164.0,0.03876369]
[1764911984264,0.03931,92165.0,92164.0,0.001]
[1764911985416,0.03931,92165.0,92163.0,0.01712]
[1764911985417,0.21700447,92164.0,92163.0,0.01712]
[1764911985775,0.27035447,92164.0,92163.0,0.01712]
[1764911987389,0.27035447,92164.0,92163.0,0.01812]
[1764911987912,0.27035447,92164.0,92163.0,0.001]
[1764911990143,0.27035447,92164.0,92163.0,0.02253036]
[1764911992708,0.27035447,92164.0,92163.0,0.001]
[1764911993278,0.21702566,92155.0,92154.0,0.01712]
[1764911993491,0.27037566,92155.0,92154.0,0.01712]
[1764911993664,0.27037566,92155.0,92154.0,0.03865036]
[1764911994885,0.27037566,92155.0,92154.0,0.04065036]
[1764911995498,0.27037566,92155.0,92154.0,0.02353036]
[1764911996586,0.27037566,92155.0,92154.0,0.02153036]
[1764911996883,0.27037566,92155.0,92154.0,0.02253036]
[1764911997938,0.27037566,92155.0,92154.0,0.001]
[1764911998346,0.28749566,92155.0,92154.0,0.001]
[1764912006284,0.2170657,92138.0,92137.0,0.01712]
[1764912006509,0.2456657,92138.0,92137.0,0.01712]
[1764912006710,0.2704157,92138.0,92137.0,0.01712]
[1764912013587,0.28126898,92138.0,92135.0,0.01623333]
[1764912013781,0.21708219,92131.0,92129.0,0.01712]
[1764912013964,0.02842,92130.0,92129.0,0.01712]
[1764912014318,0.05096,92130.0,92129.0,0.01712]
[1764912014652,0.05096,92130.0,92129.0,0.03865036]
[1764912015890,0.05096,92130.0,92129.0,0.04065036]
[1764912016101,0.05096,92130.0,92129.0,0.03865036]
[1764912016520,0.05096,92130.0,92129.0,0.04065036]
[1764912019525,0.05096,92130.0,92129.0,0.002]
[1764912020301,0.01085505,92123.0,92120.0,0.01712]
[1764912020502,0.02842,92121.0,92120.0,0.01712]
[1764912020901,0.05096,92121.0,92120.0,0.01712]
[1764912022347,0.05096,92121.0,92120.0,0.01912]
[1764912022919,0.05096,92121.0,92120.0,0.002]
[1764912028521,0.01085658,92110.0,92107.0,0.00314564]
[1764912028739,0.02842,92108.0,92107.0,0.00314564]
[1764912029105,0.05096,92108.0,92107.0,0.00314564]
[1764912029322,0.05096,92108.0,92107.0,0.024676]
[1764912030085,0.02842,92108.0,92107.0,0.029676]
[1764912030554,0.05096,92108.0,92107.0,0.029676]
[1764912031700,0.05096,92108.0,92107.0,0.00814564]
[1764912035524,0.05096,92108.0,92107.0,0.029676]
[1764912041389,0.05096,92108.0,92107.0,0.00814564]
[1764912041536,0.02842,92108.0,92107.0,0.029676]
[1764912041750,0.05323,92108.0,92107.0,0.029676]
[1764912044028,0.01234,92108.0,92107.0,0.029676]
[1764912044252,0.0529,92108.0,92107.0,0.029676]
[1764912044420,0.0529,92108.0,92107.0,0.00814564]
[1764912045438,0.0529,92108.0,92107.0,0.029676]
[1764912058818,0.01234,92108.0,92107.0,0.029676]
[1764912059310,0.02775,92108.0,92107.0,0.029676]
[1764912059514,0.05263,92108.0,92107.0,0.029676]
[1764912060445,0.05263,92108.0,92107.0,0.00814564]
[1764912062926,0.06975,92108.0,92107.0,0.00714564]
[1764912063471,0.06975,92108.0,92107.0,0.00314564]
[1764912063926,0.46826994,92108.0,92107.0,0.00414564]
[1764912064151,0.41616804,92108.0,92107.0,0.00314564]
[1764912064587,0.39166431,92108.0,92107.0,0.00314564]
[1764912065177,0.41506963,92108.0,92107.0,0.00314564]
[1764912065384,0.39166431,92108.0,92107.0,0.00314564]
[1764912067801,0.05154431,92108.0,92107.0,0.00314564]
[1764912072077,0.02666431,92108.0,92107.0,0.024676]
[1764912072688,0.01234,92112.0,92107.0,0.00314564]
[1764912072901,0.01085658,92110.0,92109.0,0.02153036]
[1764912073109,0.21713404,92109.0,92108.0,0.02153036]
[1764912073315,0.24191404,92109.0,92108.0,0.02153036]
[1764912073577,0.25739404,92109.0,92108.0,0.02153036]
[1764912073988,0.25739404,92109.0,92108.0,0.03776369]
[1764912074183,0.23261404,92109.0,92108.0,0.03776369]
[1764912074385,0.21713404,92109.0,92108.0,0.03776369]
[1764912074587,0.25739404,92109.0,92108.0,0.03776369]
[1764912076579,0.21713404,92109.0,92108.0,0.03776369]
[1764912077197,0.25739404,92109.0,92108.0,0.03776369]
[1764912077685,0.23261404,92109.0,92108.0,0.03776369]
[1764912077978,0.25739404,92109.0,92108.0,0.03776369]
[1764912079086,0.01085658,92110.0,92109.0,0.02153036]
[1764912079501,0.23261404,92109.0,92108.0,0.03776369]
[1764912079849,0.25739404,92109.0,92108.0,0.03776369]
[1764912080056,0.25739404,92109.0,92108.0,0.01623333]
[1764912080694,0.25739404,92109.0,92108.0,0.03776369]
[1764912082415,0.25739404,92109.0,92108.0,0.01623333]
[1764912082608,0.25739404,92109.0,92108.0,0.03776369]
[1764912083474,0.23261404,92109.0,92108.0,0.03776369]
[1764912083671,0.01085658,92110.0,92108.0,0.03776369]
[1764912083874,0.01085658,92110.0,92109.0,0.02153036]
[1764912089997,0.01085658,92110.0,92108.0,0.01623333]
[1764912090203,0.01085658,92110.0,92109.0,0.02153036]
[1764912093333,0.01085634,92112.0,92109.0,0.0108567]